bitfinex-derivatives/quotes_ETHF0:USTF0_20230106
["timestamp","ask_amount","ask_price","bid_price","bid_amount"]
[1673014420828,1.603,1249.8,1249.5,3.2078]
[1673014421035,1.603,1249.6,1249.5,3.2078]
[1673014425761,1.603,1249.6,1249.4,1.587]
[1673014425972,1.603,1249.6,1249.5,3.2078]
[1673014426390,1.603,1249.6,1249.4,1.587]
[1673014426603,1.603,1249.6,1249.5,3.2078]
[1673014427866,1.603,1249.8,1249.5,4.8098]
[1673014428080,1.603,1249.8,1249.7,3.2078]
[1673014429133,11.99057944,1249.9,1249.7,3.2078]
[1673014429452,6.99057944,1249.9,1249.7,3.2078]
[1673014429764,1.59,1249.9,1249.7,3.2078]
[1673014430502,8.60457944,1250.0,1249.7,4.7948]
[1673014431237,18.00320776,1250.1,1249.9,3.2078]
[1673014431548,12.00357944,1250.1,1249.9,3.2078]
[1673014433225,18.00320776,1250.1,1249.8,1.603]
[1673014433650,5.40057944,1250.0,1249.8,1.603]
[1673014435118,18.00320776,1250.1,1249.9,3.2078]
[1673014435542,5.40057944,1250.0,1249.9,3.2078]
[1673014436801,8.59857944,1250.0,1249.7,3.2078]
[1673014437017,1.596,1249.9,1249.7,3.2078]
[1673014437855,1.587,1249.9,1249.7,3.2078]
[1673014447735,6.98757944,1249.9,1249.7,3.2078]
[1673014448476,1.587,1249.9,1249.7,3.2078]
[1673014449005,1.589,1249.8,1249.7,3.2078]
[1673014452472,1.602,1249.8,1249.7,3.2078]
[1673014457835,1.602,1249.8,1249.5,1.602]
[1673014458048,1.602,1249.8,1249.7,3.2078]
[1673014462364,1.602,1249.8,1249.5,1.602]
[1673014462575,1.602,1249.8,1249.7,3.2078]
[1673014471824,1.602,1249.8,1249.5,2.78075674]
[1673014472036,1.602,1249.8,1249.7,3.2078]
[1673014485288,1.602,1249.8,1249.7,3.20338068]
[1673014486442,1.602,1249.8,1249.5,5.98855674]
[1673014486653,1.602,1249.6,1249.5,4.38655674]
[1673014490963,1.602,1249.7,1249.5,5.98855674]
[1673014491581,1.602,1249.8,1249.6,1.598]
[1673014491796,1.602,1249.8,1249.7,3.2078]
[1673014502006,5.40057944,1249.9,1249.7,3.2078]
[1673014502007,6.99357944,1249.9,1249.7,3.2078]
[1673014503892,12.99320776,1249.9,1249.7,3.2078]
[1673014505047,7.00257944,1249.8,1249.7,3.2078]
[1673014505788,1.602,1249.8,1249.7,3.2078]
[1673014508742,7.00257944,1249.8,1249.7,3.2078]
[1673014509156,1.602,1249.8,1249.7,3.2078]
[1673014511049,7.00257944,1249.8,1249.7,3.2078]
[1673014515996,1.602,1249.8,1249.7,3.2078]
[1673014516628,7.00257944,1249.8,1249.7,3.2078]
[1673014520094,1.602,1249.8,1249.7,3.2078]
[1673014521251,7.00257944,1249.8,1249.7,3.2078]
[1673014522515,1.602,1249.8,1249.7,3.2078]
[1673014528403,7.00257944,1249.8,1249.7,3.2078]
[1673014528822,7.00257944,1249.8,1249.4,2.78075674]
[1673014529033,1.602,1249.7,1249.4,2.78075674]
[1673014529251,1.602,1249.7,1249.6,3.2078]
[1673014532092,6.99357944,1249.8,1249.6,3.2078]
[1673014532823,6.99357944,1249.8,1249.5,1.602]
[1673014533036,6.99357944,1249.8,1249.6,3.2078]
[1673014540818,6.99357944,1249.8,1249.7,3.2078]
[1673014547221,6.99357944,1249.8,1249.5,1.602]
[1673014547430,6.99357944,1249.8,1249.7,3.2078]
[1673014555631,5.40057944,1249.8,1249.7,3.2078]
[1673014555947,5.40057944,1249.8,1249.7,4.8098]
[1673014559103,1.593,1249.9,1249.7,4.8098]
[1673014560254,1.593,1249.9,1249.7,5.98855674]
[1673014560465,1.602,1250.0,1249.8,1.602]
[1673014560674,1.602,1250.0,1249.9,3.2078]
[1673014571818,1.593,1250.1,1249.9,3.2078]
[1673014576856,1.593,1250.1,1250.0,3.2078]
[1673014577706,1.593,1250.1,1250.0,3.20169607]
[1673014580330,1.593,1250.1,1249.8,3.2078]
[1673014580331,1.602,1250.0,1249.8,3.2078]
[1673014580539,3.204,1250.0,1249.8,3.2078]
[1673014588641,3.204,1250.0,1249.9,3.2078]
[1673014591689,3.204,1250.0,1249.7,1.597]
[1673014592003,1.602,1250.0,1249.9,3.2078]
[1673014599698,1.602,1250.0,1249.7,10.81775674]
[1673014599914,1.602,1250.0,1249.9,3.2078]
[1673014601786,5.40057944,1250.1,1249.9,3.2078]
[1673014602008,1.602,1250.0,1249.9,3.2078]
[1673014602529,1.602,1250.0,1249.8,1.602]
[1673014602726,1.602,1250.0,1249.9,3.2078]
[1673014604204,1.602,1250.0,1249.8,1.602]
[1673014604414,1.602,1250.0,1249.9,3.2078]
[1673014604627,1.602,1250.0,1249.8,1.602]
[1673014604835,1.602,1250.0,1249.9,3.2078]
[1673014608737,7.00257944,1250.0,1249.9,3.2078]
[1673014609589,7.00257944,1250.0,1249.7,3.2078]
[1673014609590,8.57957944,1250.0,1249.7,3.2078]
[1673014609779,1.602,1249.8,1249.7,3.2078]
[1673014621470,1.602,1249.8,1249.6,1.602]
[1673014621677,1.602,1249.8,1249.6,4.8098]
[1673014621896,1.594,1249.8,1249.6,4.8098]
[1673014622098,1.594,1249.8,1249.6,4.8048]
[1673014624315,6.99457944,1249.8,1249.6,4.8048]
[1673014624828,1.594,1249.8,1249.6,4.8048]
[1673014626186,1.594,1249.8,1249.6,3.2078]
[1673014626408,3.194,1249.7,1249.6,3.2078]
[1673014626623,4.796,1249.7,1249.4,3.2078]
[1673014626836,3.193,1249.5,1249.4,3.2078]
[1673014627354,1.591,1249.5,1249.4,3.2078]
[1673014627666,26.58282503,1249.9,1249.4,3.2078]
[1673014627667,1.593,1249.6,1249.4,4.7948]
[1673014633234,1.593,1249.6,1249.5,3.2078]
[1673014642048,1.602,1249.6,1249.5,3.2078]
[1673014642992,1.602,1249.6,1249.3,1.602]
[1673014643208,1.602,1249.6,1249.5,3.2078]
[1673014646994,1.602,1249.6,1249.5,3.20244594]
[1673014647627,1.586,1249.7,1249.5,3.20244594]
[1673014647628,1.594,1249.7,1249.5,3.20244594]
[1673014647840,1.599,1249.8,1249.5,4.80444594]
[1673014648158,1.599,1249.8,1249.7,3.2078]
[1673014651312,1.599,1249.8,1249.6,3.2078]
[1673014653726,1.599,1249.8,1249.7,3.2078]
[1673014656992,6.99957944,1249.8,1249.7,3.2078]
[1673014660666,16.64057944,1249.8,1249.5,3.2078]
[1673014660985,1.593,1249.6,1249.5,3.2078]
[1673014668243,1.593,1249.6,1249.3,5.98855674]
[1673014668455,7.00257944,1249.7,1249.3,3.2078]
[1673014668456,1.595,1249.4,1249.3,3.2078]
[1673014680122,1.595,1249.4,1249.1,2.76575674]
[1673014680123,3.187,1249.4,1249.1,3.2078]
[1673014680333,1.602,1249.2,1249.1,3.2078]
[1673014685591,1.595,1249.4,1249.1,4.8098]
[1673014685801,1.595,1249.4,1249.3,3.2078]
[1673014688954,1.595,1249.4,1249.2,3.2078]
[1673014689164,1.594,1249.3,1249.2,3.2078]
[1673014689790,1.594,1249.3,1249.0,2.78075674]
[1673014689998,1.594,1249.3,1249.2,3.2078]
[1673014691796,1.594,1249.3,1249.0,2.78075674]
[1673014692005,3.0,1249.1,1249.0,2.78075674]
[1673014692317,3.0,1249.1,1249.0,7.76877097]
[1673014694112,3.0,1249.1,1249.0,4.56097097]
[1673014694320,3.0,1249.1,1249.0,7.76877097]
[1673014695374,3.0,1249.1,1249.0,5.98855674]
[1673014696421,3.0,1249.1,1249.0,7.76877097]
[1673014700517,3.0,1249.1,1249.0,6.59001423]
[1673014706735,3.0,1249.1,1249.0,8.96363321]
[1673014707047,3.0,1249.1,1249.0,6.59001423]
[1673014707249,3.0,1249.1,1249.0,7.7837289]
[1673014707772,3.0,1249.1,1249.0,6.59001423]
[1673014708096,3.0,1249.1,1249.0,7.78381656]
[1673014709356,3.0,1249.1,1249.0,7.78389797]
[1673014709566,3.0,1249.1,1249.0,7.78391192]
[1673014711779,3.0,1249.1,1249.0,6.18191192]
[1673014711985,3.0,1249.1,1249.0,4.40169769]
[1673014713252,3.0,1249.1,1249.0,3.2078]
[1673014718922,3.0,1249.1,1249.0,4.40169769]
[1673014720083,3.0,1249.1,1249.0,3.2078]
[1673014720292,3.0,1249.1,1249.0,4.40169769]
[1673014720494,3.0,1249.1,1249.0,3.2078]
[1673014721016,3.0,1249.1,1249.0,4.40169769]
[1673014721231,3.0,1249.1,1249.0,3.2078]
[1673014721867,4.602,1249.1,1249.0,3.2078]
[1673014725439,4.602,1249.1,1249.0,3.20087081]
[1673014726804,4.602,1249.1,1249.0,3.2078]
[1673014727428,6.204,1249.1,1248.8,3.2078]
[1673014727743,1.592,1248.9,1248.8,3.2078]
[1673014728372,1.592,1248.9,1248.8,4.40169769]
[1673014729219,1.592,1248.9,1248.8,3.2078]
[1673014730798,4.6,1249.1,1248.8,4.7938]
[1673014731010,4.6,1249.1,1249.0,3.2078]
[1673014731534,1.6,1249.1,1249.0,3.2078]
[1673014731843,3.0,1249.1,1249.0,3.2078]
[1673014734474,4.602,1249.1,1249.0,3.2078]
[1673014740784,6.198,1249.1,1248.8,3.2078]
[1673014740991,1.602,1248.9,1248.8,3.2078]
[1673014741407,3.189,1248.9,1248.8,3.2078]
[1673014746980,1.602,1248.9,1248.8,3.2078]
[1673014748549,1.602,1248.9,1248.8,4.40169769]
[1673014748764,1.602,1249.0,1248.8,4.8098]
[1673014749928,1.602,1249.0,1248.8,6.00369769]
[1673014752435,1.602,1249.0,1248.8,4.8098]
[1673014753193,1.602,1249.0,1248.8,6.00369769]
[1673014753917,1.602,1249.0,1248.8,4.8098]
[1673014754544,1.602,1249.0,1248.8,6.00369769]
[1673014754967,1.602,1249.0,1248.9,3.2078]
[1673014758638,1.602,1249.0,1248.8,1.602]
[1673014758854,1.602,1249.0,1248.9,3.2078]
[1673014759488,3.204,1249.0,1248.9,3.2078]
[1673014760535,3.20134816,1249.0,1248.9,3.2078]
[1673014767477,3.20134816,1249.0,1248.8,1.19389769]
[1673014768004,3.20134816,1249.0,1248.9,3.2078]
[1673014785978,3.20134816,1249.0,1248.7,4.57611192]
[1673014786188,1.59934816,1249.0,1248.9,3.2078]
[1673014786411,3.20134816,1249.0,1248.9,3.2078]
[1673014813744,3.20134816,1249.0,1248.7,4.57611192]
[1673014813951,3.20134816,1249.0,1248.9,3.2078]
[1673014814265,3.20134816,1249.0,1248.7,4.57611192]
[1673014814484,3.20134816,1249.0,1248.9,3.2078]
[1673014817630,4.78734816,1249.0,1248.7,3.2078]
[1673014817838,1.602,1248.8,1248.7,3.2078]
[1673014820049,1.594,1248.9,1248.7,6.18191192]
[1673014821316,1.594,1248.9,1248.7,4.40169769]
[1673014821526,1.594,1248.9,1248.7,6.18191192]
[1673014822262,1.594,1248.9,1248.7,4.40169769]
[1673014826467,1.594,1248.9,1248.7,3.2078]
[1673014827099,1.594,1248.9,1248.6,4.57611192]
[1673014827304,1.594,1248.9,1248.8,3.2078]
[1673014828146,1.594,1248.9,1248.6,6.00369769]
[1673014828358,1.594,1248.9,1248.8,3.2078]
[1673014831829,1.602,1248.9,1248.8,3.2078]
[1673014832256,1.602,1248.9,1248.6,2.78889769]
[1673014832467,6.9999276,1249.0,1248.8,3.2078]
[1673014832673,1.595,1248.9,1248.8,3.2078]
[1673014833619,1.595,1248.9,1248.6,2.78889769]
[1673014833620,3.181,1248.9,1248.6,3.2078]
[1673014833818,1.601,1248.7,1248.6,3.2078]
[1673014834032,1.601,1248.7,1248.6,4.40169769]
[1673014834778,1.601,1248.7,1248.6,3.2078]
[1673014835191,1.601,1248.7,1248.6,4.40169769]
[1673014835509,1.601,1248.7,1248.6,4.39894827]
[1673014840128,1.602,1248.8,1248.6,7.7811625]
[1673014840339,1.602,1248.8,1248.6,6.00094827]
[1673014842765,1.602,1248.8,1248.6,7.7811625]
[1673014842978,1.602,1248.8,1248.6,6.00094827]
[1673014843499,1.602,1248.8,1248.6,7.7811625]
[1673014843705,1.602,1248.8,1248.6,6.00094827]
[1673014843915,1.602,1248.8,1248.6,7.7811625]
[1673014844128,1.602,1248.8,1248.6,6.00094827]
[1673014844756,1.602,1248.8,1248.6,7.7811625]
[1673014844967,1.602,1248.8,1248.6,6.00094827]
[1673014846128,1.602,1248.8,1248.7,3.2078]
[1673014849058,1.594,1248.8,1248.7,3.2078]
[1673014849700,1.594,1248.8,1248.5,6.00369769]
[1673014849915,1.602,1248.7,1248.5,6.00369769]
[1673014850857,1.602,1248.7,1248.5,7.78391192]
[1673014856111,1.602,1248.7,1248.6,1.19389769]
[1673014856536,1.6,1248.8,1248.6,2.79589769]
[1673014856849,1.6,1248.8,1248.7,3.2078]
[1673014869456,15.184,1249.0,1248.7,5.99669769]
[1673014869658,1.602,1249.0,1248.9,3.2078]
[1673014869872,7.00257944,1249.1,1248.9,3.2078]
[1673014870610,1.602,1249.1,1248.9,3.2078]
[1673014870821,4.602,1249.1,1248.9,3.2078]
[1673014873450,4.602,1249.1,1249.0,3.2078]
[1673014875129,4.602,1249.1,1248.8,4.8098]
[1673014875340,4.602,1249.1,1249.0,3.2078]
[1673014877652,1.602,1249.1,1249.0,3.2078]
[1673014878284,3.102,1249.1,1249.0,3.2078]
[1673014878596,1.602,1249.1,1249.0,3.2078]
[1673014879436,3.102,1249.1,1249.0,3.2078]
[1673014880910,3.102,1249.1,1248.8,2.79589769]
[1673014881113,1.602,1249.1,1249.0,3.2078]
[1673014881846,1.5,1249.1,1249.0,4.8028]
[1673014884056,1.5,1249.1,1249.0,1.595]
[1673014884267,1.5,1249.1,1249.0,4.8028]
[1673014886690,1.5,1249.1,1249.0,1.595]
[1673014886903,1.5,1249.1,1249.0,4.8028]
[1673014887103,1.5,1249.1,1249.0,1.595]
[1673014887314,1.5,1249.1,1249.0,4.8028]
[1673014889111,1.5,1249.1,1249.0,1.595]
[1673014889320,1.5,1249.1,1249.0,4.8028]
[1673014891837,3.102,1249.1,1249.0,3.2078]
[1673014894262,3.102,1249.1,1248.9,1.597]
[1673014894569,3.102,1249.1,1249.0,3.2078]
[1673014903715,3.102,1249.1,1248.9,1.597]
[1673014903928,3.102,1249.1,1249.0,3.2078]
[1673014905929,3.102,1249.1,1248.9,1.597]
[1673014906136,3.102,1249.1,1249.0,3.2078]
[1673014911926,3.102,1249.1,1248.9,1.597]
[1673014912140,3.102,1249.1,1249.0,3.2078]
[1673014912448,3.102,1249.1,1248.9,1.597]
[1673014912772,3.102,1249.1,1249.0,3.2078]
[1673014914446,3.102,1249.1,1249.0,3.20549919]
[1673014921805,1.5,1249.1,1249.0,3.20549919]
[1673014929066,6.90057944,1249.1,1249.0,3.20549919]
[1673014929688,1.5,1249.1,1249.0,3.20549919]
[1673014932005,3.094,1249.1,1249.0,3.20549919]
[1673014933793,3.094,1249.1,1248.9,1.588]
[1673014934003,3.094,1249.1,1249.0,3.2078]
[1673014936426,3.094,1249.1,1248.9,1.588]
[1673014936637,3.094,1249.1,1249.0,3.2078]
[1673014938419,1.594,1249.1,1249.0,3.2078]
[1673014938838,9.99657944,1249.2,1249.0,4.8098]
[1673014939047,3.0,1249.2,1249.1,1.597]
[1673014940094,8.40057944,1249.3,1249.1,3.204]
[1673014940301,3.0,1249.3,1249.2,4.7988]
[1673014942003,18.98257944,1249.5,1249.3,8.042]
[1673014942307,10.79614839,1249.7,1249.4,6.4118]
[1673014942514,10.79614839,1249.7,1249.6,4.7958]
[1673014942932,16.19672783,1249.7,1249.6,4.7958]
[1673014943151,10.19848224,1249.7,1249.6,4.7958]
[1673014943357,4.7979028,1249.7,1249.6,4.7958]
[1673014943569,17.79872783,1249.8,1249.6,4.7958]
[1673014943984,11.80048224,1249.8,1249.6,4.7958]
[1673014944712,6.3999028,1249.8,1249.6,4.7958]
[1673014945344,6.3999028,1249.8,1249.6,1.588]
[1673014946307,6.3999028,1249.8,1249.6,4.7958]
[1673014946519,6.3999028,1249.8,1249.6,1.588]
[1673014947472,1.602,1249.8,1249.6,4.7958]
[1673014948623,4.7979028,1249.9,1249.7,1.597]
[1673014948837,10.19848224,1249.9,1249.7,1.597]
[1673014949456,4.7979028,1249.9,1249.7,1.597]
[1673014951357,4.7979028,1249.9,1249.8,1.602]
[1673014954087,13.60837944,1250.0,1249.6,3.2078]
[1673014954296,13.60837944,1250.0,1249.8,1.602]
[1673014954508,1.602,1249.9,1249.7,1.598]
[1673014958608,4.8098,1249.8,1249.6,1.602]
[1673014960300,1.602,1249.8,1249.6,1.602]
[1673014968601,1.602,1249.8,1249.6,4.8098]
[1673014968813,15.21037944,1250.0,1249.7,1.587]
[1673014970389,21.20862503,1250.0,1249.7,1.587]
[1673014970601,3.2078,1249.8,1249.7,1.587]
[1673014971642,5.40057944,1249.9,1249.7,1.587]
[1673014971860,8.60837944,1249.9,1249.7,1.587]
[1673014977745,14.60662503,1249.9,1249.7,1.587]
[1673014977958,5.40057944,1249.8,1249.7,1.587]
[1673014981316,11.39882503,1249.8,1249.7,1.587]
[1673014981640,5.99824559,1249.8,1249.7,1.587]
[1673014981843,5.99824559,1249.8,1249.6,1.602]
[1673014982054,5.40334889,1249.7,1249.6,1.602]
[1673014985105,11.40159448,1249.8,1249.6,1.602]
[1673014986787,5.40334889,1249.8,1249.6,1.602]
[1673014988049,5.40334889,1249.8,1249.6,4.8098]
[1673014988684,13.00359448,1249.9,1249.6,4.8098]
[1673014988888,13.00359448,1249.9,1249.6,1.602]
[1673014989307,13.00359448,1249.9,1249.6,4.8098]
[1673014990359,7.00534889,1249.9,1249.6,4.8098]
[1673014990795,7.00534889,1249.9,1249.6,4.80357436]
[1673014992049,6.99734889,1249.9,1249.6,4.80357436]
[1673014994678,1.594,1249.9,1249.6,4.80357436]
[1673014996874,1.594,1249.9,1249.8,3.2078]
[1673014999190,6.99434889,1250.0,1249.8,4.7958]
[1673015004659,6.99434889,1250.0,1249.7,1.586]
[1673015004660,1.599,1249.9,1249.7,1.586]
[1673015005190,7.00234889,1249.9,1249.7,1.586]
[1673015005505,1.599,1249.9,1249.7,1.586]
[1673015009179,1.599,1249.9,1249.8,3.2078]
[1673015016116,5.0,1250.0,1249.8,4.7958]
[1673015017060,10.40334889,1250.0,1249.8,4.7958]
[1673015021791,10.40334889,1250.0,1249.8,1.588]
[1673015023366,11.99534889,1250.0,1249.7,4.8048]
[1673015024513,11.99534889,1250.0,1249.9,3.2078]
[1673015027364,5.0,1250.0,1249.9,3.2078]
[1673015031667,5.0,1250.0,1249.8,1.602]
[1673015031879,5.0,1250.0,1249.9,3.2078]
[1673015032195,10.40334889,1250.0,1249.9,3.2078]
[1673015037241,10.40334889,1250.0,1249.8,4.8098]
[1673015037768,5.0,1250.0,1249.8,4.8098]
[1673015039864,1.601,1250.1,1249.8,4.8098]
[1673015040074,1.601,1250.1,1250.0,3.2078]
[1673015040289,11.99634889,1250.2,1250.0,3.2078]
[1673015041862,6.99634889,1250.2,1250.0,3.2078]
[1673015042078,1.593,1250.2,1250.0,3.2078]
[1673015043971,6.99634889,1250.2,1250.0,3.2078]
[1673015044496,1.593,1250.2,1250.0,3.2078]
[1673015044909,13.582,1250.3,1250.1,3.189]
[1673015045121,5.40334889,1250.4,1250.2,4.8098]
[1673015045335,5.40334889,1250.4,1250.3,3.199]
[1673015045656,16.40159448,1250.5,1250.3,3.199]
[1673015045866,16.40159448,1250.5,1250.4,1.602]
[1673015046291,5.39289313,1250.5,1250.4,4.8098]
[1673015046917,5.0,1250.6,1250.4,4.8098]
[1673015046918,10.39289313,1250.6,1250.4,4.8098]
[1673015047125,10.39289313,1250.6,1250.5,1.602]
[1673015047332,5.39289313,1250.6,1250.5,1.602]
[1673015047548,11.39113872,1250.7,1250.5,1.597]
[1673015047753,11.39113872,1250.7,1250.6,1.602]
[1673015047969,6.601,1250.8,1250.6,4.8098]
[1673015048386,5.0,1250.8,1250.7,1.598]
[1673015050700,6.595,1250.8,1250.6,3.2078]
[1673015054166,5.0,1250.8,1250.7,1.602]
[1673015054379,1.602,1250.9,1250.7,1.602]
[1673015054588,6.602,1251.0,1250.8,4.7958]
[1673015055009,1.602,1251.0,1250.8,4.7958]
[1673015055226,13.582,1251.1,1250.9,1.602]
[1673015055433,6.596,1251.2,1250.9,1.602]
[1673015058692,9.8038,1251.2,1250.9,1.602]
[1673015059418,6.596,1251.2,1250.9,1.602]
[1673015060900,1.602,1251.1,1250.9,1.602]
[1673015061319,9.8038,1251.2,1250.8,4.7958]
[1673015061320,8.2078,1251.2,1251.0,1.597]
[1673015061530,5.0,1251.2,1251.0,1.597]
[1673015061738,6.595,1251.2,1251.0,1.597]
[1673015062371,1.599,1251.1,1250.8,4.8098]
[1673015064895,6.602,1251.2,1250.9,1.588]
[1673015065315,6.602,1251.2,1251.0,3.2078]
[1673015069104,6.602,1251.2,1251.0,3.20045316]
[1673015070566,6.602,1251.2,1250.9,1.588]
[1673015070993,6.602,1251.2,1251.0,3.2078]
[1673015074149,6.594,1251.2,1251.0,4.7938]
[1673015082557,6.594,1251.2,1251.0,1.586]
[1673015085608,1.594,1251.2,1251.0,1.586]
[1673015085819,6.594,1251.2,1251.0,1.586]
[1673015086867,5.0,1251.2,1251.1,4.8098]
[1673015087608,1.602,1251.3,1251.1,4.8098]
[1673015090020,25.57689313,1251.4,1251.2,1.591]
[1673015090245,11.99489313,1251.4,1251.2,1.591]
[1673015090868,6.602,1251.4,1251.2,1.591]
[1673015091494,11.99489313,1251.4,1251.2,1.591]
[1673015092444,11.99489313,1251.4,1251.3,4.8098]
[1673015092445,10.39289313,1251.4,1251.3,4.8098]
[1673015092654,5.0,1251.4,1251.3,4.8098]
[1673015093171,12.99013872,1251.5,1251.3,4.8098]
[1673015093376,6.99189313,1251.5,1251.3,4.8098]
[1673015093588,5.39289313,1251.5,1251.4,1.588]
[1673015094428,17.98813872,1251.6,1251.4,1.588]
[1673015095169,11.98989313,1251.6,1251.4,1.588]
[1673015095923,17.98813872,1251.6,1251.4,1.588]
[1673015096962,5.39289313,1251.5,1251.4,1.588]
[1673015100751,5.39289313,1251.5,1251.4,1.587]
[1673015101696,5.39289313,1251.5,1251.4,1.602]
[1673015102322,5.99824559,1251.5,1251.4,1.602]
[1673015102532,5.99824559,1251.5,1251.3,1.602]
[1673015102533,7.59024559,1251.5,1251.2,1.588]
[1673015102853,1.602,1251.3,1251.1,3.2078]
[1673015103058,8.195,1251.2,1250.9,3.2078]
[1673015103269,6.594,1251.2,1250.9,3.2078]
[1673015103480,5.0,1251.2,1251.1,3.2078]
[1673015103902,5.0,1251.2,1251.1,4.7958]
[1673015104421,11.98320799,1251.4,1251.1,4.7958]
[1673015105262,6.602,1251.4,1251.1,4.7958]
[1673015106417,6.602,1251.4,1251.3,3.2078]
[1673015106628,6.602,1251.4,1251.1,4.7958]
[1673015107054,11.98320799,1251.4,1251.1,4.7958]
[1673015107997,5.38120799,1251.4,1251.3,1.602]
[1673015108205,17.97845358,1251.6,1251.3,4.8098]
[1673015108730,11.98020799,1251.6,1251.3,4.8098]
[1673015110619,16.76116193,1251.6,1251.3,4.8098]
[1673015112834,4.78095394,1251.5,1251.4,3.2078]
[1673015116515,10.16216193,1251.5,1251.4,3.2078]
[1673015117144,5.38120799,1251.5,1251.4,3.2078]
[1673015117563,10.16346717,1251.5,1251.4,3.2078]
[1673015117986,10.16346717,1251.5,1251.3,1.593]
[1673015118197,4.78225918,1251.4,1251.3,1.593]
[1673015119245,6.38225918,1251.4,1251.2,3.2078]
[1673015120813,11.76346717,1251.4,1251.2,3.2078]
[1673015121441,1.6,1251.3,1251.2,3.2078]
[1673015121763,7.98225918,1251.3,1250.9,1.6]
[1673015121970,1.594,1251.2,1251.0,3.2078]
[1673015122388,6.594,1251.2,1251.0,3.2078]
[1673015127956,6.594,1251.2,1251.1,3.2078]
[1673015128479,11.37625918,1251.2,1251.1,3.2078]
[1673015128899,6.594,1251.2,1251.1,3.2078]
[1673015129540,6.594,1251.2,1250.9,4.8078]
[1673015129747,11.37625918,1251.2,1250.9,4.8078]
[1673015130474,11.37625918,1251.2,1251.1,3.2078]
[1673015132474,5.0,1251.2,1251.1,3.2078]
[1673015132687,16.76346717,1251.4,1251.1,4.8078]
[1673015134160,4.78225918,1251.3,1251.1,4.8078]
[1673015134586,16.76346717,1251.4,1251.1,4.8078]
[1673015136576,1.6,1251.3,1251.1,3.2078]
[1673015136785,6.38225918,1251.3,1251.1,3.2078]
[1673015137213,1.598,1251.2,1251.1,3.2078]
[1673015137734,6.598,1251.2,1251.1,3.2078]
[1673015139315,11.38025918,1251.2,1251.1,3.2078]
[1673015139945,6.598,1251.2,1251.1,3.2078]
[1673015140364,11.38025918,1251.2,1251.1,3.2078]
[1673015142776,11.38225918,1251.2,1250.8,1.588]
[1673015142981,11.38225918,1251.2,1250.9,3.2078]
[1673015142982,1.588,1251.0,1250.9,3.2078]
[1673015148457,1.588,1251.0,1250.9,3.203385]
[1673015149618,1.6,1251.1,1250.9,3.203385]
[1673015150457,11.38225918,1251.2,1250.9,4.803385]
[1673015150985,11.38225918,1251.2,1251.1,3.2078]
[1673015154774,6.6,1251.2,1251.1,3.2078]
[1673015155412,11.38225918,1251.2,1251.1,3.2078]
[1673015157091,6.6,1251.2,1251.1,3.2078]
[1673015158771,11.38225918,1251.2,1251.1,3.2078]
[1673015161928,16.74846717,1251.2,1251.1,3.2078]
[1673015162967,11.36725918,1251.2,1251.1,3.2078]
[1673015166339,11.36725918,1251.2,1250.9,1.592]
[1673015166538,11.36725918,1251.2,1251.1,3.2078]
[1673015167819,6.36725918,1251.2,1251.1,3.2078]
[1673015168232,1.585,1251.2,1251.1,3.2078]
[1673015170334,16.76346717,1251.4,1251.1,4.8018]
[1673015170543,15.16346717,1251.4,1251.3,3.2078]
[1673015170747,10.38120799,1251.4,1251.3,3.2078]
[1673015170958,5.0,1251.4,1251.3,3.2078]
[1673015172541,9.78225918,1251.4,1251.3,3.2078]
[1673015173164,5.0,1251.4,1251.3,3.2078]
[1673015184410,9.78225918,1251.4,1251.3,3.2078]
[1673015186827,9.78225918,1251.4,1251.2,1.592]
[1673015187036,9.78225918,1251.4,1251.2,4.7998]
[1673015187258,11.38225918,1251.4,1251.2,3.2078]
[1673015187772,1.588,1251.3,1251.2,3.2078]
[1673015187980,7.97025918,1251.3,1251.0,3.2078]
[1673015188191,1.6,1251.1,1251.0,3.2078]
[1673015198287,17.38050477,1251.4,1251.0,12.8018]
[1673015198499,17.38050477,1251.4,1251.2,3.2078]
[1673015198704,11.38225918,1251.4,1251.2,3.2078]
[1673015199539,4.78225918,1251.3,1251.2,3.2078]
[1673015201338,6.38225918,1251.3,1251.2,3.2078]
[1673015202490,1.6,1251.3,1251.2,3.2078]
[1673015203960,6.38225918,1251.3,1251.2,3.2078]
[1673015206274,6.38225918,1251.3,1251.1,3.2078]
[1673015207423,4.78225918,1251.3,1251.1,3.2078]
[1673015207634,6.36625918,1251.3,1251.1,3.2078]
[1673015209210,6.36625918,1251.3,1251.0,1.594]
[1673015209533,6.36625918,1251.3,1251.1,3.2078]
[1673015211525,11.74746717,1251.3,1251.1,3.2078]
[1673015213625,4.78225918,1251.2,1251.1,3.2078]
[1673015216567,11.74746717,1251.3,1251.1,3.2078]
[1673015217305,4.78225918,1251.2,1251.1,3.2027128]
[1673015221931,6.37025918,1251.2,1251.1,3.2027128]
[1673015223299,1.599,1251.2,1251.1,3.2027128]
[1673015225504,1.599,1251.2,1251.0,1.601]
[1673015225923,1.599,1251.2,1251.1,3.2078]
[1673015232024,6.38025918,1251.3,1251.1,3.2078]
[1673015232439,11.76146717,1251.3,1251.1,3.2078]